[Event "*** SCC Grand Prix: Titled Tuesday Blitz"]
[Site "Chess.com"]
[Date "2020.07.14"]
[Round "1"]
[White "Ave_Mariia"]
[Black "AvitalBor"]
[Result "0-1"]
[WhiteElo "2382"]
[BlackElo "2724"]
[TimeControl "180+1"]
[EndTime "10:06:21 PDT"]
[Termination "AvitalBor won by resignation"]

1. c4 {[%clk 0:03:00.2]} 1... e6 {[%clk 0:02:58.5]} 2. g3 {[%clk 0:02:57.1]}
2... d5 {[%clk 0:02:58.5]} 3. Nf3 {[%clk 0:02:57.5]} 3... dxc4 {[%clk
0:02:57.8]} 4. Bg2 {[%clk 0:02:55.7]} 4... a6 {[%clk 0:02:56]} 5. a4 {[%clk
0:02:43.6]} 5... Nc6 {[%clk 0:02:52.1]} 6. O-O {[%clk 0:02:43.1]} 6... Nf6
{[%clk 0:02:50]} 7. Qc2 {[%clk 0:02:39.4]} 7... Na5 {[%clk 0:02:47.7]} 8. Rd1
{[%clk 0:02:31.9]} 8... Nd5 {[%clk 0:02:38.9]} 9. Na3 {[%clk 0:02:17.1]} 9...
Bxa3 {[%clk 0:02:34.3]} 10. Rxa3 {[%clk 0:02:16.4]} 10... O-O {[%clk 0:02:33.9]}
11. Ne5 {[%clk 0:01:59.1]} 11... Bd7 {[%clk 0:01:45.3]} 12. Nxc4 {[%clk
0:01:55.1]} 12... Nxc4 {[%clk 0:01:45.3]} 13. Qxc4 {[%clk 0:01:55.1]} 13... Bc6
{[%clk 0:01:45.9]} 14. a5 {[%clk 0:01:39.1]} 14... Qe7 {[%clk 0:01:43.4]} 15. d4
{[%clk 0:01:38]} 15... Rad8 {[%clk 0:01:35]} 16. e4 {[%clk 0:01:29.8]} 16... Nf6
{[%clk 0:01:33.4]} 17. Re3 {[%clk 0:01:29.4]} 17... e5 {[%clk 0:01:26.5]} 18. d5
{[%clk 0:01:13.6]} 18... Bb5 {[%clk 0:01:26.6]} 19. Qc3 {[%clk 0:01:12.6]} 19...
c6 {[%clk 0:01:19.6]} 20. Ree1 {[%clk 0:01:08.6]} 20... h6 {[%clk 0:01:19]} 21.
f4 {[%clk 0:00:52.7]} 21... cxd5 {[%clk 0:01:14.4]} 22. fxe5 {[%clk 0:00:46.3]}
22... Nxe4 {[%clk 0:01:13.6]} 23. Bxe4 {[%clk 0:00:45.2]} 23... dxe4 {[%clk
0:01:13.7]} 24. Bf4 {[%clk 0:00:40.4]} 24... Bd3 {[%clk 0:01:03.1]} 25. Rc1
{[%clk 0:00:28.3]} 25... Qe6 {[%clk 0:01:01.9]} 26. Qc7 {[%clk 0:00:26.5]} 26...
Rd7 {[%clk 0:01:02]} 27. Qc5 {[%clk 0:00:24.2]} 27... Rfd8 {[%clk 0:01:00.7]}
28. Rc3 {[%clk 0:00:15.4]} 28... Bb5 {[%clk 0:00:59.8]} 29. Rxe4 {[%clk
0:00:11.7]} 29... Rd1+ {[%clk 0:00:55]} 0-1

[Event "*** SCC Grand Prix: Titled Tuesday Blitz"]
[Site "Chess.com"]
[Date "2020.07.14"]
[Round "1"]
[White "Raffaello123"]
[Black "StephenDedalus83"]
[Result "0-1"]
[WhiteElo "2412"]
[BlackElo "2829"]
[TimeControl "180+1"]
[EndTime "10:06:24 PDT"]
[Termination "StephenDedalus83 won by resignation"]

1. e4 {[%clk 0:03:00.8]} 1... c5 {[%clk 0:02:58.9]} 2. Nf3 {[%clk 0:03:00.7]}
2... Nc6 {[%clk 0:02:56.2]} 3. d4 {[%clk 0:03:01.2]} 3... cxd4 {[%clk
0:02:57.1]} 4. Nxd4 {[%clk 0:03:02.1]} 4... Qc7 {[%clk 0:02:56.5]} 5. Nc3 {[%clk
0:03:02.4]} 5... e6 {[%clk 0:02:56.6]} 6. Be3 {[%clk 0:03:02.1]} 6... a6 {[%clk
0:02:57.1]} 7. Bd3 {[%clk 0:03:02]} 7... Nf6 {[%clk 0:02:57.2]} 8. O-O {[%clk
0:03:02]} 8... Ne5 {[%clk 0:02:57.2]} 9. Be2 {[%clk 0:03:02.1]} 9... Bc5 {[%clk
0:02:54.7]} 10. a3 {[%clk 0:02:51.2]} 10... d6 {[%clk 0:02:53.4]} 11. f4 {[%clk
0:02:50.8]} 11... Nc6 {[%clk 0:02:52.2]} 12. Kh1 {[%clk 0:02:47.4]} 12... O-O
{[%clk 0:02:24.3]} 13. e5 {[%clk 0:02:27.6]} 13... dxe5 {[%clk 0:02:23.2]} 14.
Nxc6 {[%clk 0:02:27.3]} 14... Qxc6 {[%clk 0:02:20.9]} 15. fxe5 {[%clk
0:02:26.6]} 15... Nd7 {[%clk 0:02:10.1]} 16. Bxc5 {[%clk 0:02:10.2]} 16... Qxc5
{[%clk 0:02:09.4]} 17. Bd3 {[%clk 0:02:07.2]} 17... Qxe5 {[%clk 0:02:08.4]} 18.
Qf3 {[%clk 0:02:05.7]} 18... Nc5 {[%clk 0:02:01.8]} 19. Rae1 {[%clk 0:02:05]}
19... Qd4 {[%clk 0:02:01]} 20. Ne2 {[%clk 0:02:00.3]} 20... Qd6 {[%clk
0:01:57.5]} 21. Rd1 {[%clk 0:01:57]} 21... Nxd3 {[%clk 0:01:56.7]} 22. Rxd3
{[%clk 0:01:57.9]} 22... Qe5 {[%clk 0:01:54.3]} 23. Rfd1 {[%clk 0:01:43.6]}
23... Qf6 {[%clk 0:01:47]} 24. Qe4 {[%clk 0:01:36.9]} 24... e5 {[%clk
0:01:42.2]} 25. Rd6 {[%clk 0:01:33.7]} 25... Be6 {[%clk 0:01:39.4]} 26. Qxb7
{[%clk 0:01:29.8]} 26... Rab8 {[%clk 0:01:38.7]} 27. Qxa6 {[%clk 0:01:26.3]}
27... Rxb2 {[%clk 0:01:38.4]} 28. Ng3 {[%clk 0:01:18.6]} 28... Rxc2 {[%clk
0:01:33.2]} 29. Rf1 {[%clk 0:01:18.1]} 29... Qg6 {[%clk 0:01:24.6]} 30. Qb6
{[%clk 0:01:10.7]} 30... h5 {[%clk 0:01:18.7]} 31. Qb4 {[%clk 0:00:59.5]} 31...
Rfc8 {[%clk 0:01:11.3]} 32. Rdd1 {[%clk 0:00:50.6]} 32... R2c4 {[%clk
0:01:02.8]} 33. Qb6 {[%clk 0:00:46.2]} 33... h4 {[%clk 0:01:02]} 34. Rd8+ {[%clk
0:00:46.2]} 34... Rxd8 {[%clk 0:00:58.3]} 35. Qxd8+ {[%clk 0:00:46.4]} 35... Kh7
{[%clk 0:00:58.3]} 36. Ne2 {[%clk 0:00:46.6]} 36... h3 {[%clk 0:00:54.7]} 37. g3
{[%clk 0:00:19.6]} 37... Qe4+ {[%clk 0:00:53.6]} 0-1

[Event "*** SCC Grand Prix: Titled Tuesday Blitz"]
[Site "Chess.com"]
[Date "2020.07.14"]
[Round "1"]
[White "NikolaGry"]
[Black "DanielTitichoca"]
[Result "1/2-1/2"]
[WhiteElo "2634"]
[BlackElo "2335"]
[TimeControl "180+1"]
[EndTime "10:06:24 PDT"]
[Termination "Game drawn by agreement"]

1. e4 {[%clk 0:03:00.9]} 1... c5 {[%clk 0:02:55.5]} 2. Nf3 {[%clk 0:03:00.4]}
2... e6 {[%clk 0:02:55.2]} 3. d4 {[%clk 0:03:00]} 3... cxd4 {[%clk 0:02:56.1]}
4. Nxd4 {[%clk 0:03:00.3]} 4... a6 {[%clk 0:02:57]} 5. c4 {[%clk 0:02:59.3]}
5... Qc7 {[%clk 0:02:57.4]} 6. Nc3 {[%clk 0:02:58.5]} 6... b6 {[%clk 0:02:57.5]}
7. f3 {[%clk 0:02:56.4]} 7... Bb7 {[%clk 0:02:56.3]} 8. Be3 {[%clk 0:02:55.3]}
8... Nf6 {[%clk 0:02:56.4]} 9. Be2 {[%clk 0:02:49]} 9... d6 {[%clk 0:02:55.3]}
10. O-O {[%clk 0:02:47.7]} 10... Nbd7 {[%clk 0:02:53.1]} 11. Rc1 {[%clk
0:02:46.9]} 11... Be7 {[%clk 0:02:51]} 12. Qd2 {[%clk 0:02:45.8]} 12... O-O
{[%clk 0:02:47.1]} 13. Rfd1 {[%clk 0:02:41.6]} 13... Rac8 {[%clk 0:02:44.5]} 14.
Kh1 {[%clk 0:02:32.2]} 14... Rfe8 {[%clk 0:02:36.3]} 15. Bf1 {[%clk 0:02:23.3]}
15... Bf8 {[%clk 0:02:34.7]} 16. Bg1 {[%clk 0:02:21.9]} 16... Qb8 {[%clk
0:02:34.4]} 17. b3 {[%clk 0:02:20.2]} 17... Be7 {[%clk 0:02:34.3]} 18. Nc2
{[%clk 0:02:13.7]} 18... Qa8 {[%clk 0:02:29.4]} 19. Ne3 {[%clk 0:02:13.3]} 19...
Bf8 {[%clk 0:02:25.3]} 20. Qf2 {[%clk 0:02:08.6]} 20... g6 {[%clk 0:02:17.8]}
21. Ne2 {[%clk 0:01:59.1]} 21... d5 {[%clk 0:02:10.4]} 22. cxd5 {[%clk
0:01:54.4]} 22... exd5 {[%clk 0:02:09.1]} 23. Rxc8 {[%clk 0:01:53.3]} 23... Rxc8
{[%clk 0:02:07.5]} 24. exd5 {[%clk 0:01:47.3]} 24... Nxd5 {[%clk 0:02:08.4]} 25.
Nxd5 {[%clk 0:01:47.1]} 25... Bxd5 {[%clk 0:02:06.5]} 26. Nf4 {[%clk 0:01:42.2]}
26... Bc6 {[%clk 0:01:59.7]} 27. Bc4 {[%clk 0:01:30.3]} 27... Ne5 {[%clk
0:01:57.9]} 28. Bd5 {[%clk 0:01:28.7]} 28... Bg7 {[%clk 0:01:54.6]} 29. Qxb6
{[%clk 0:01:19.9]} 29... h5 {[%clk 0:01:15.7]} 30. Bxc6 {[%clk 0:01:15.2]} 30...
Qxc6 {[%clk 0:01:16.5]} 31. Qxc6 {[%clk 0:01:12]} 31... Rxc6 {[%clk 0:01:15.7]}
32. Nd5 {[%clk 0:01:08.1]} 32... Rc2 {[%clk 0:01:14.7]} 33. Nb4 {[%clk
0:01:04.7]} 33... Rb2 {[%clk 0:01:15]} 34. Bd4 {[%clk 0:01:01.9]} 34... Re2
{[%clk 0:01:12.1]} 35. Nxa6 {[%clk 0:00:55.4]} 35... Rxa2 {[%clk 0:01:07.8]} 36.
Nb4 {[%clk 0:00:52.1]} 36... Re2 {[%clk 0:01:07.8]} 37. Nd5 {[%clk 0:00:51.6]}
37... h4 {[%clk 0:01:05.1]} 38. h3 {[%clk 0:00:49.8]} 38... Nc6 {[%clk
0:00:54.5]} 39. Bxg7 {[%clk 0:00:45.7]} 39... Kxg7 {[%clk 0:00:55.4]} 40. b4
{[%clk 0:00:41.7]} 40... Rb2 {[%clk 0:00:54.1]} 41. Rc1 {[%clk 0:00:38.8]} 41...
Nxb4 {[%clk 0:00:52.8]} 42. Nxb4 {[%clk 0:00:38.5]} 42... Rxb4 {[%clk
0:00:53.7]} 43. Kh2 {[%clk 0:00:37.7]} 1/2-1/2

[Event "*** SCC Grand Prix: Titled Tuesday Blitz"]
[Site "Chess.com"]
[Date "2020.07.14"]
[Round "1"]
[White "guillejr"]
[Black "pedro_gines"]
[Result "0-1"]
[WhiteElo "1973"]
[BlackElo "2464"]
[TimeControl "180+1"]
[EndTime "10:06:24 PDT"]
[Termination "pedro_gines won by resignation"]

1. e4 {[%clk 0:02:58.3]} 1... c6 {[%clk 0:02:59.3]} 2. d4 {[%clk 0:02:57.3]}
2... d5 {[%clk 0:03:00.2]} 3. exd5 {[%clk 0:02:58.2]} 3... cxd5 {[%clk
0:02:59.4]} 4. c4 {[%clk 0:02:58.8]} 4... Nf6 {[%clk 0:02:58.7]} 5. Nc3 {[%clk
0:02:59.3]} 5... Nc6 {[%clk 0:02:58.7]} 6. Nf3 {[%clk 0:02:59.2]} 6... Bg4
{[%clk 0:02:56.6]} 7. cxd5 {[%clk 0:02:59.5]} 7... Nxd5 {[%clk 0:02:49.3]} 8.
Bc4 {[%clk 0:02:58.8]} 8... e6 {[%clk 0:02:42.8]} 9. Be3 {[%clk 0:01:53.4]} 9...
Be7 {[%clk 0:01:59.1]} 10. O-O {[%clk 0:01:52.6]} 10... Nxe3 {[%clk 0:01:43.6]}
11. fxe3 {[%clk 0:01:52]} 11... O-O {[%clk 0:01:44.5]} 12. a3 {[%clk 0:01:50.8]}
12... Rc8 {[%clk 0:01:36.9]} 13. Qd3 {[%clk 0:01:38.3]} 13... Qa5 {[%clk
0:01:25]} 14. b4 {[%clk 0:01:27.9]} 14... Qh5 {[%clk 0:01:23]} 15. Ne4 {[%clk
0:01:14.5]} 15... Rfd8 {[%clk 0:01:18.7]} 16. Ng3 {[%clk 0:01:10.9]} 16... Qh6
{[%clk 0:01:16.4]} 17. Qb3 {[%clk 0:00:51.6]} 17... Bd6 {[%clk 0:01:00.1]} 18.
Ne4 {[%clk 0:00:42.1]} 18... Bb8 {[%clk 0:00:49.8]} 19. h3 {[%clk 0:00:36.3]}
19... Bf5 {[%clk 0:00:47.5]} 20. Nc5 {[%clk 0:00:35.9]} 20... b6 {[%clk
0:00:40.9]} 21. Nd3 {[%clk 0:00:28.8]} 21... Qxe3+ {[%clk 0:00:39]} 22. Rf2
{[%clk 0:00:16.3]} 22... Bg3 {[%clk 0:00:34.4]} 23. Re1 {[%clk 0:00:13.8]} 23...
Bxf2+ {[%clk 0:00:29.6]} 24. Nxf2 {[%clk 0:00:14.7]} 24... Qxb3 {[%clk
0:00:29.6]} 25. Bxb3 {[%clk 0:00:14.4]} 25... Nxd4 {[%clk 0:00:29.9]} 26. Nxd4
{[%clk 0:00:13.6]} 26... Rxd4 {[%clk 0:00:30.8]} 0-1

[Event "*** SCC Grand Prix: Titled Tuesday Blitz"]
[Site "Chess.com"]
[Date "2020.07.14"]
[Round "1"]
[White "Herracek"]
[Black "MVM2008"]
[Result "1-0"]
[WhiteElo "2567"]
[BlackElo "2242"]
[TimeControl "180+1"]
[EndTime "10:06:25 PDT"]
[Termination "Herracek won by resignation"]

1. c4 {[%clk 0:03:00.9]} 1... g6 {[%clk 0:02:57.8]} 2. g3 {[%clk 0:03:01.1]}
2... Bg7 {[%clk 0:02:55.4]} 3. Bg2 {[%clk 0:03:02]} 3... Nf6 {[%clk 0:02:55.2]}
4. Nc3 {[%clk 0:03:02.5]} 4... c6 {[%clk 0:02:52.3]} 5. d3 {[%clk 0:03:03.1]}
5... d5 {[%clk 0:02:52.5]} 6. cxd5 {[%clk 0:03:04]} 6... cxd5 {[%clk 0:02:51]}
7. Bg5 {[%clk 0:03:04.5]} 7... d4 {[%clk 0:02:47.7]} 8. Ne4 {[%clk 0:03:04.4]}
8... Nc6 {[%clk 0:02:37.1]} 9. Qd2 {[%clk 0:03:00.5]} 9... Nxe4 {[%clk
0:02:32.2]} 10. Bxe4 {[%clk 0:02:59.5]} 10... h6 {[%clk 0:02:26.9]} 11. Bh4
{[%clk 0:02:27.3]} 11... g5 {[%clk 0:02:23.6]} 12. Nf3 {[%clk 0:02:27.6]} 12...
gxh4 {[%clk 0:02:21.9]} 13. Nxh4 {[%clk 0:02:28.5]} 13... e6 {[%clk 0:02:17]}
14. O-O {[%clk 0:02:26.4]} 14... Bd7 {[%clk 0:02:11]} 15. Rac1 {[%clk
0:02:25.7]} 15... Bf6 {[%clk 0:02:06.4]} 16. Ng2 {[%clk 0:02:22.6]} 16... h5
{[%clk 0:02:00.2]} 17. h4 {[%clk 0:02:18.6]} 17... e5 {[%clk 0:01:56.6]} 18. b4
{[%clk 0:02:16.3]} 18... a6 {[%clk 0:01:55.9]} 19. a4 {[%clk 0:02:15.4]} 19...
Rc8 {[%clk 0:01:53.2]} 20. b5 {[%clk 0:02:13.5]} 20... axb5 {[%clk 0:01:49.9]}
21. axb5 {[%clk 0:02:14.4]} 21... Qa5 {[%clk 0:01:29.9]} 22. bxc6 {[%clk
0:01:49]} 22... Qxd2 {[%clk 0:01:21.1]} 23. cxd7+ {[%clk 0:01:49.4]} 23... Kxd7
{[%clk 0:01:14.8]} 24. Bf5+ {[%clk 0:01:49.4]} 24... Ke7 {[%clk 0:01:08.3]} 25.
Bxc8 {[%clk 0:01:47.8]} 25... Qxe2 {[%clk 0:00:54]} 26. Rc7+ {[%clk 0:01:37.7]}
26... Kf8 {[%clk 0:00:51.1]} 27. Bxb7 {[%clk 0:01:27.6]} 27... Qxd3 {[%clk
0:00:45.2]} 28. Bd5 {[%clk 0:01:27.9]} 28... Qg6 {[%clk 0:00:29.7]} 29. f4
{[%clk 0:01:19.3]} 29... e4 {[%clk 0:00:26.3]} 30. f5 {[%clk 0:01:14.2]} 30...
Qh7 {[%clk 0:00:19.5]} 31. Ra1 {[%clk 0:01:07.8]} 31... Bd8 {[%clk 0:00:15.9]}
32. Ra8 {[%clk 0:01:05]} 32... Kg7 {[%clk 0:00:16]} 33. Rxf7+ {[%clk 0:01:04.2]}
33... Kh6 {[%clk 0:00:14.4]} 34. Ra6+ {[%clk 0:01:01.5]} 1-0

[Event "*** SCC Grand Prix: Titled Tuesday Blitz"]
[Site "Chess.com"]
[Date "2020.07.14"]
[Round "1"]
[White "Chigorinetz"]
[Black "PawnEatingZombie"]
[Result "0-1"]
[WhiteElo "2502"]
[BlackElo "2199"]
[TimeControl "180+1"]
[EndTime "10:06:25 PDT"]
[Termination "PawnEatingZombie won on time"]

1. e4 {[%clk 0:01:56.7]} 1... c6 {[%clk 0:02:57.2]} 2. d4 {[%clk 0:01:54.8]}
2... d5 {[%clk 0:02:56.9]} 3. f3 {[%clk 0:01:54.9]} 3... Qb6 {[%clk 0:02:55.5]}
4. Nc3 {[%clk 0:01:53]} 4... dxe4 {[%clk 0:02:54]} 5. Bc4 {[%clk 0:01:47.8]}
5... Nf6 {[%clk 0:02:08.9]} 6. Bb3 {[%clk 0:01:43]} 6... Bf5 {[%clk 0:02:03.2]}
7. Bg5 {[%clk 0:01:38.3]} 7... exf3 {[%clk 0:01:56]} 8. Nxf3 {[%clk 0:01:31.6]}
8... e6 {[%clk 0:01:55.3]} 9. Qe2 {[%clk 0:01:09.2]} 9... Be7 {[%clk 0:01:52.7]}
10. O-O-O {[%clk 0:01:07.3]} 10... Nbd7 {[%clk 0:01:49.2]} 11. h4 {[%clk
0:01:05.1]} 11... O-O-O {[%clk 0:01:45.3]} 12. h5 {[%clk 0:00:47.4]} 12... h6
{[%clk 0:01:44.4]} 13. Bf4 {[%clk 0:00:45.9]} 13... Rhe8 {[%clk 0:01:08.5]} 14.
Na4 {[%clk 0:00:43.9]} 14... Qa5 {[%clk 0:01:04.2]} 15. Rhe1 {[%clk 0:00:39.6]}
15... Ne4 {[%clk 0:00:50.9]} 16. g4 {[%clk 0:00:30]} 16... Bh7 {[%clk 0:00:50]}
17. Bh2 {[%clk 0:00:27.4]} 17... Bd6 {[%clk 0:00:46.1]} 18. Bxd6 {[%clk
0:00:20]} 18... Nxd6 {[%clk 0:00:45.5]} 19. Ne5 {[%clk 0:00:16.3]} 19... Nxe5
{[%clk 0:00:43.3]} 20. dxe5 {[%clk 0:00:16.1]} 20... Ne4 {[%clk 0:00:41.1]} 21.
Qh2 {[%clk 0:00:06.8]} 21... Qc7 {[%clk 0:00:40]} 22. a3 {[%clk 0:00:04.3]}
22... Rxd1+ {[%clk 0:00:37.7]} 23. Rxd1 {[%clk 0:00:02.8]} 23... Rd8 {[%clk
0:00:38]} 0-1

[Event "*** SCC Grand Prix: Titled Tuesday Blitz"]
[Site "Chess.com"]
[Date "2020.07.14"]
[Round "1"]
[White "Azoulas1"]
[Black "Savva09022009"]
[Result "1-0"]
[WhiteElo "2013"]
[BlackElo "2452"]
[TimeControl "180+1"]
[EndTime "10:06:26 PDT"]
[Termination "Azoulas1 won by checkmate"]

1. e4 {[%clk 0:02:57.5]} 1... c5 {[%clk 0:02:59.2]} 2. Nf3 {[%clk 0:02:56.6]}
2... d6 {[%clk 0:02:59.8]} 3. Bb5+ {[%clk 0:02:55]} 3... Nd7 {[%clk 0:02:58.8]}
4. Ba4 {[%clk 0:02:53.1]} 4... Nf6 {[%clk 0:02:57.4]} 5. O-O {[%clk 0:02:48.2]}
5... Nxe4 {[%clk 0:02:51.9]} 6. d4 {[%clk 0:02:46.1]} 6... c4 {[%clk 0:02:41.4]}
7. Re1 {[%clk 0:02:27.6]} 7... Nf6 {[%clk 0:02:28.7]} 8. Bf4 {[%clk 0:02:25.7]}
8... e6 {[%clk 0:02:21.1]} 9. d5 {[%clk 0:02:16.6]} 9... e5 {[%clk 0:02:18.8]}
10. Bxe5 {[%clk 0:02:08.3]} 10... dxe5 {[%clk 0:01:30.5]} 11. Rxe5+ {[%clk
0:02:06.2]} 11... Be7 {[%clk 0:01:27.2]} 12. d6 {[%clk 0:02:04.6]} 12... Qb6
{[%clk 0:01:20.8]} 13. Rxe7+ {[%clk 0:02:01.7]} 13... Kd8 {[%clk 0:01:19.1]} 14.
Rxf7 {[%clk 0:01:42.7]} 14... Ne4 {[%clk 0:00:53.3]} 15. Qe2 {[%clk 0:01:05.3]}
15... Re8 {[%clk 0:00:20.5]} 16. Re7 {[%clk 0:01:03.4]} 16... Nxd6 {[%clk
0:00:19.7]} 17. Rxe8+ {[%clk 0:00:54.5]} 17... Nxe8 {[%clk 0:00:20.6]} 18. Nbd2
{[%clk 0:00:49.2]} 18... Qxb2 {[%clk 0:00:19.5]} 19. Re1 {[%clk 0:00:47.8]}
19... Nef6 {[%clk 0:00:16.7]} 20. Qe7+ {[%clk 0:00:41.5]} 20... Kc7 {[%clk
0:00:16.4]} 21. Nxc4 {[%clk 0:00:36.8]} 21... Qc3 {[%clk 0:00:12.5]} 22. Qd6+
{[%clk 0:00:28]} 22... Kd8 {[%clk 0:00:12.6]} 23. Nce5 {[%clk 0:00:26.2]} 23...
a6 {[%clk 0:00:09.8]} 24. Nf7# {[%clk 0:00:25.5]} 1-0

[Event "*** SCC Grand Prix: Titled Tuesday Blitz"]
[Site "Chess.com"]
[Date "2020.07.14"]
[Round "1"]
[White "frederiksvane"]
[Black "awesomevishesh"]
[Result "1-0"]
[WhiteElo "2682"]
[BlackElo "2353"]
[TimeControl "180+1"]
[EndTime "10:06:30 PDT"]
[Termination "frederiksvane won on time"]

1. e4 {[%clk 0:03:00.9]} 1... c5 {[%clk 0:02:56.7]} 2. Nf3 {[%clk 0:03:01.1]}
2... d6 {[%clk 0:02:56.6]} 3. Bb5+ {[%clk 0:03:01.3]} 3... Nd7 {[%clk
0:02:55.8]} 4. O-O {[%clk 0:03:00.5]} 4... a6 {[%clk 0:02:51.7]} 5. Bd3 {[%clk
0:03:00.3]} 5... Ngf6 {[%clk 0:02:50.8]} 6. Re1 {[%clk 0:03:00.2]} 6... e6
{[%clk 0:02:48.8]} 7. c3 {[%clk 0:02:59.4]} 7... b5 {[%clk 0:02:47.6]} 8. a4
{[%clk 0:02:58.7]} 8... c4 {[%clk 0:02:42.5]} 9. Bf1 {[%clk 0:02:58.7]} 9... Bb7
{[%clk 0:02:41.7]} 10. d3 {[%clk 0:02:48.7]} 10... Be7 {[%clk 0:02:16.9]} 11.
axb5 {[%clk 0:02:12.3]} 11... axb5 {[%clk 0:02:15.6]} 12. Rxa8 {[%clk
0:02:13.2]} 12... Bxa8 {[%clk 0:01:57.1]} 13. Na3 {[%clk 0:01:55.4]} 13... O-O
{[%clk 0:01:29.9]} 14. Nxb5 {[%clk 0:01:42.7]} 14... cxd3 {[%clk 0:01:29.3]} 15.
Bxd3 {[%clk 0:01:41.7]} 15... Nc5 {[%clk 0:01:28.7]} 16. b4 {[%clk 0:01:35.2]}
16... Ncxe4 {[%clk 0:01:23.7]} 17. Be3 {[%clk 0:01:29]} 17... Qd7 {[%clk
0:00:47.1]} 18. Qb3 {[%clk 0:01:19.1]} 18... Bb7 {[%clk 0:00:28.2]} 19. Ra1
{[%clk 0:01:14.5]} 19... Ra8 {[%clk 0:00:25.1]} 20. Rxa8+ {[%clk 0:01:11.3]}
20... Bxa8 {[%clk 0:00:25.7]} 21. c4 {[%clk 0:01:03.2]} 21... h6 {[%clk
0:00:21.1]} 22. h3 {[%clk 0:01:02.3]} 22... Bc6 {[%clk 0:00:13.7]} 23. Nbd4
{[%clk 0:01:00.8]} 23... Bb7 {[%clk 0:00:12.4]} 24. Qa3 {[%clk 0:00:50.9]} 24...
d5 {[%clk 0:00:10.9]} 25. c5 {[%clk 0:00:48.5]} 25... Qc7 {[%clk 0:00:07.7]} 26.
Nb5 {[%clk 0:00:45.9]} 26... Qb8 {[%clk 0:00:04.1]} 27. Qa7 {[%clk 0:00:45.9]}
27... Qxa7 {[%clk 0:00:03.1]} 28. Nxa7 {[%clk 0:00:46.8]} 1-0

[Event "*** SCC Grand Prix: Titled Tuesday Blitz"]
[Site "Chess.com"]
[Date "2020.07.14"]
[Round "1"]
[White "Konavets"]
[Black "dennisodessa"]
[Result "1-0"]
[WhiteElo "3062"]
[BlackElo "2453"]
[TimeControl "180+1"]
[EndTime "10:06:31 PDT"]
[Termination "Konavets won by resignation"]

1. d4 {[%clk 0:02:58.2]} 1... e6 {[%clk 0:02:54.7]} 2. c4 {[%clk 0:02:58]} 2...
Nf6 {[%clk 0:02:54.7]} 3. Nf3 {[%clk 0:02:57.2]} 3... Bb4+ {[%clk 0:02:54.7]} 4.
Bd2 {[%clk 0:02:56.7]} 4... a5 {[%clk 0:02:54.4]} 5. g3 {[%clk 0:02:56.3]} 5...
b6 {[%clk 0:02:54.7]} 6. Bg2 {[%clk 0:02:56.6]} 6... Bb7 {[%clk 0:02:55.3]} 7.
O-O {[%clk 0:02:56.4]} 7... O-O {[%clk 0:02:56]} 8. Nc3 {[%clk 0:02:50.7]} 8...
d6 {[%clk 0:02:56]} 9. Qc2 {[%clk 0:02:48.3]} 9... Nbd7 {[%clk 0:02:55.8]} 10.
Rfe1 {[%clk 0:02:44]} 10... Bxc3 {[%clk 0:02:52.5]} 11. Bxc3 {[%clk 0:02:44.9]}
11... Be4 {[%clk 0:02:52.6]} 12. Qd2 {[%clk 0:02:45.4]} 12... Qc8 {[%clk
0:02:53.2]} 13. Qf4 {[%clk 0:02:41.7]} 13... Qb7 {[%clk 0:02:53.2]} 14. Bh3
{[%clk 0:02:42.2]} 14... Rfe8 {[%clk 0:02:42.8]} 15. Nd2 {[%clk 0:02:39]} 15...
Bc6 {[%clk 0:02:42.5]} 16. Qh4 {[%clk 0:02:37.3]} 16... b5 {[%clk 0:02:37.5]}
17. cxb5 {[%clk 0:02:25.6]} 17... Qxb5 {[%clk 0:02:11.1]} 18. e4 {[%clk
0:02:25.2]} 18... e5 {[%clk 0:02:10.8]} 19. a4 {[%clk 0:02:18.6]} 19... Qa6
{[%clk 0:02:03.1]} 20. Bf1 {[%clk 0:02:09.4]} 20... Qa7 {[%clk 0:02:02.6]} 21.
d5 {[%clk 0:02:09.2]} 21... Bb7 {[%clk 0:02:03]} 22. Bb5 {[%clk 0:02:09.4]}
22... Ba6 {[%clk 0:01:30.3]} 23. Bxa5 {[%clk 0:02:07.4]} 23... Bxb5 {[%clk
0:01:30.4]} 24. axb5 {[%clk 0:02:08.3]} 24... Qb7 {[%clk 0:01:31.1]} 25. b4
{[%clk 0:02:07.6]} 25... Qxb5 {[%clk 0:01:24.4]} 26. Rac1 {[%clk 0:02:07.8]}
26... Rac8 {[%clk 0:01:12.8]} 27. Nc4 {[%clk 0:02:01.7]} 27... Nb8 {[%clk
0:00:39.5]} 28. Bxc7 {[%clk 0:01:45.9]} 28... Rxc7 {[%clk 0:00:33.3]} 29. Nxd6
{[%clk 0:01:46]} 29... Qxb4 {[%clk 0:00:31.7]} 30. Nxe8 {[%clk 0:01:45]} 30...
Nxe8 {[%clk 0:00:31]} 31. Qd8 {[%clk 0:01:45.1]} 31... Qe7 {[%clk 0:00:24.6]}
32. Qxb8 {[%clk 0:01:44.1]} 32... Rb7 {[%clk 0:00:16.2]} 33. Qc8 {[%clk
0:01:44.3]} 33... g6 {[%clk 0:00:15.7]} 34. d6 {[%clk 0:01:35.5]} 34... Qd7
{[%clk 0:00:15.3]} 35. Qxd7 {[%clk 0:01:35.4]} 35... Rxd7 {[%clk 0:00:16.2]} 36.
Rc8 {[%clk 0:01:33.7]} 36... Kf8 {[%clk 0:00:16.2]} 37. Rd1 {[%clk 0:01:28.6]}
37... f6 {[%clk 0:00:16.3]} 38. f4 {[%clk 0:01:28.9]} 38... exf4 {[%clk
0:00:10]} 39. gxf4 {[%clk 0:01:27.1]} 39... Kf7 {[%clk 0:00:10.1]} 40. e5 {[%clk
0:01:27.8]} 40... fxe5 {[%clk 0:00:09.7]} 41. fxe5 {[%clk 0:01:28.7]} 41... Ng7
{[%clk 0:00:10.6]} 42. Rc7 {[%clk 0:01:23.5]} 42... Ke6 {[%clk 0:00:10.1]} 43.
Rxd7 {[%clk 0:01:23.9]} 43... Kxd7 {[%clk 0:00:11]} 44. Ra1 {[%clk 0:01:24.3]}
44... Nf5 {[%clk 0:00:09.1]} 45. Ra7+ {[%clk 0:01:23.4]} 45... Ke6 {[%clk
0:00:09.5]} 46. Rxh7 {[%clk 0:01:24.1]} 46... Kxe5 {[%clk 0:00:08.9]} 47. d7
{[%clk 0:01:24.1]} 1-0